bitfinex/quotes_SOLUSD_20220307
["timestamp","ask_amount","ask_price","bid_price","bid_amount"]
[1646693741713,73.26,82.059,82.0,197.5]
[1646693741910,73.26,82.057,82.0,197.5]
[1646693742109,122.1,82.049,82.0,197.5]
[1646693742310,195.36,82.045,82.0,197.5]
[1646693742511,122.1,82.043,82.0,197.5]
[1646693742712,0.25,82.042,82.0,197.5]
[1646693743712,0.25,82.043,82.0,197.5]
[1646693744110,0.25,82.048,82.0,197.5]
[1646693744309,6.095,82.047,82.0,197.5]
[1646693744512,0.25,82.046,82.0,197.5]
[1646693744812,6.095,82.045,82.0,197.5]
[1646693745111,0.25,82.044,82.0,197.5]
[1646693745314,6.095,82.043,82.0,197.5]
[1646693745611,6.25,82.042,82.0,197.5]
[1646693746211,6.25,82.041,82.0,197.5]
[1646693746415,0.25,82.041,82.0,197.5]
[1646693746812,6.0,82.044,82.0,197.5]
[1646693748112,8.46495277,82.045,82.0,215.794]
[1646693748313,8.46495277,82.045,82.001,0.25]
[1646693748512,8.46495277,82.045,82.001,8.24101534]
[1646693748812,8.46495277,82.069,82.016,100.0]
[1646693749016,8.46495277,82.069,82.018,122.1]
[1646693749217,8.46495277,82.069,82.019,134.444]
[1646693749416,8.46495277,82.069,82.019,136.43501534]
[1646693749616,8.46495277,82.069,82.019,130.34101534]
[1646693749816,8.46495277,82.069,82.02,1.99101534]
[1646693750016,8.46495277,82.069,82.021,6.25]
[1646693750217,8.46495277,82.069,82.03,18.2859]
[1646693750416,8.46495277,82.069,82.031,6.343]
[1646693750619,8.46495277,82.069,82.031,8.33401534]
[1646693750819,8.46495277,82.069,82.032,6.0]
[1646693751117,8.46495277,82.069,82.033,0.25]
[1646693751317,8.46495277,82.069,82.034,6.093]
[1646693751523,8.46495277,82.069,82.035,0.25]
[1646693751719,8.46495277,82.069,82.036,6.093]
[1646693751919,8.46495277,82.069,82.037,0.25]
[1646693752118,6.093,82.109,82.04,18.2803]
[1646693752320,6.25,82.108,82.041,0.25]
[1646693752519,6.091,82.107,82.041,0.25]
[1646693752720,6.25,82.106,82.041,0.25]
[1646693753019,201.451,82.105,82.041,0.25]
[1646693753218,122.1,82.103,82.032,0.25]
[1646693753420,128.441,82.102,82.04,18.2848]
[1646693753729,0.25,82.101,82.041,6.091]
[1646693753921,0.25,82.101,82.033,6.091]
[1646693754223,6.091,82.1,82.034,0.25]
[1646693754422,0.25,82.099,82.035,6.091]
[1646693754620,6.091,82.098,82.034,0.25]
[1646693754821,0.25,82.097,82.034,0.25]
[1646693755021,6.82,82.097,82.034,0.25]
[1646693755222,122.1,82.096,82.024,0.25]
[1646693755421,122.1,82.094,82.024,0.25]
[1646693755622,0.25,82.093,82.022,23.9544]
[1646693755822,195.36,82.089,82.01,6.093]
[1646693756023,195.36,82.087,82.006,6.093]
[1646693756223,196.99809508,82.085,81.981,6.094]
[1646693756526,195.36,82.079,81.981,6.094]
[1646693756728,195.36,82.077,82.006,6.094]
[1646693756923,195.36,82.077,82.001,6.094]
[1646693757123,195.36,82.075,82.001,6.094]
[1646693757325,0.25,82.074,81.99,18.2962]
[1646693757525,195.36,82.069,81.99,18.2962]
[1646693757725,195.36,82.067,81.99,18.2964]
[1646693757926,0.25,82.066,81.99,18.2964]
[1646693758124,195.36,82.065,81.99,18.2964]
[1646693758325,73.26,82.056,81.98,24.8428]
[1646693758525,195.61,82.055,81.98,24.8428]
[1646693758728,6.0,82.054,81.98,24.8428]
[1646693758928,73.26,82.051,81.98,24.8428]
[1646693759127,12.345,82.05,81.98,43.1401]
[1646693759429,6.0,82.049,81.98,43.1401]
[1646693759626,6.345,82.048,81.98,43.1401]
[1646693760729,6.345,82.048,81.98,24.8428]
[1646693760932,124.93613526,82.047,81.97,18.3007]
[1646693761129,122.1,82.045,81.97,18.3007]
[1646693761329,2.83613526,82.047,81.954,6.095]
[1646693761330,12.345,82.044,81.954,6.095]
[1646693761531,6.25,82.044,81.954,6.095]
[1646693761731,6.0,82.043,81.99,18.2968]
[1646693762035,0.25,82.042,81.961,6.095]
[1646693762231,0.25,82.044,81.961,6.095]
[1646693762432,73.26,82.039,81.955,6.095]
[1646693762631,73.26,82.037,81.955,6.095]
[1646693762831,18.3059,82.03,81.955,6.095]
[1646693763031,122.35,82.029,81.955,6.095]
[1646693763230,6.25,82.028,81.955,6.095]
[1646693763432,8.83613526,82.028,81.955,6.095]
[1646693763631,0.25,82.027,81.955,6.095]
[1646693763833,0.25,82.027,81.96,18.3033]
[1646693764330,6.096,82.026,81.96,18.3033]
[1646693764533,122.1,82.024,81.955,6.095]
[1646693764731,0.25,82.023,81.955,6.095]
[1646693764930,122.1,82.022,81.955,6.095]
[1646693765132,0.25,82.021,81.955,6.095]
[1646693765333,6.25,82.021,81.955,6.095]
[1646693766130,0.25,82.021,81.955,6.095]
[1646693766331,0.25,82.023,81.955,6.095]
[1646693766930,0.25,82.023,81.96,18.3031]
[1646693767732,0.25,82.023,81.955,6.095]
[1646693768333,8.46495277,82.022,81.955,6.095]
[1646693768532,6.25,82.021,81.955,6.095]
[1646693769334,122.1,82.02,81.955,6.095]
[1646693769639,122.1,82.018,81.955,6.095]
[1646693769834,122.1,82.016,81.955,6.095]
[1646693770034,0.25,82.015,81.955,6.095]
[1646693770333,122.1,82.014,81.955,6.095]
[1646693770534,6.25,82.013,81.955,6.095]
[1646693770733,6.25,82.012,81.955,6.095]
[1646693770935,122.1,82.014,81.955,6.095]
[1646693771141,6.25,82.013,81.955,6.095]
[1646693771335,0.25,82.012,81.955,6.095]
[1646693772138,2.83613526,82.011,81.955,6.095]
[1646693772334,122.1,82.009,81.955,6.095]
[1646693772534,3.28219997,82.008,81.955,6.095]
[1646693772734,6.0,82.007,81.955,6.095]
[1646693772934,0.25,82.006,81.955,6.095]
[1646693774537,8.46495277,82.005,81.955,6.095]
[1646693774741,128.35,82.004,81.955,6.095]
[1646693775943,122.1,81.99,81.955,6.095]
[1646693776142,73.26,81.971,81.887,46.4327]
[1646693776342,122.1,81.964,81.887,46.4327]
[1646693776542,73.26,81.957,81.887,46.4327]
[1646693776745,122.1,81.954,81.887,46.4327]
[1646693776943,122.1,81.954,81.876,100.0]
[1646693776944,18.323,81.95,81.876,100.0]
[1646693777143,122.35,81.949,81.877,6.0]
[1646693777348,195.36,81.945,81.877,6.0]
[1646693777642,122.1,81.943,81.877,6.0]
[1646693777842,122.1,81.939,81.873,6.0]
[1646693778043,0.25,81.938,81.873,6.0]
[1646693778245,0.25,81.938,81.874,0.25]
[1646693778446,0.25,81.938,81.873,6.0]
[1646693778647,6.25,81.938,81.873,6.0]
[1646693778848,6.25,81.938,81.874,0.25]
[1646693779047,122.1,81.937,81.874,0.25]
[1646693779247,0.25,81.936,81.88,18.3216]
[1646693779446,0.25,81.936,81.881,6.25]
[1646693779647,0.25,81.936,81.881,6.0]
[1646693780046,0.25,81.936,81.882,0.25]
[1646693780247,14.43,81.94,81.89,18.3193]
[1646693780447,8.46495277,81.944,81.896,100.0]
[1646693780646,8.46495277,81.944,81.897,0.25]
[1646693780946,8.46495277,81.969,81.897,0.25]
[1646693781146,6.0,81.968,81.911,100.0]
[1646693781349,6.0,81.968,81.92,18.3118]
[1646693781549,8.46495277,81.969,81.921,0.25]
[1646693782548,8.46495277,81.969,81.93,18.3047]
[1646693782750,6.101,82.005,81.931,0.25]
[1646693782967,6.099,82.014,81.931,0.25]
[1646693783167,6.099,82.019,81.932,1.99101534]
[1646693783364,0.25,82.013,81.933,0.25]
[1646693783765,0.25,82.013,81.934,1.99101534]
[1646693783968,0.25,82.013,81.94,18.308]
[1646693784168,0.25,82.013,81.941,6.099]
[1646693784367,6.099,82.012,81.933,0.25]
[1646693784568,122.1,82.005,81.923,0.25]
[1646693784767,6.25,82.004,81.924,6.099]
[1646693784970,6.25,82.004,81.925,0.25]
[1646693785166,0.25,82.004,81.94,18.3077]
[1646693785368,0.25,82.004,81.941,6.099]
[1646693785566,0.25,82.004,81.925,0.25]
[1646693785567,0.25,82.004,81.942,0.25]
[1646693785767,0.25,82.009,81.925,0.25]
[1646693785966,122.1,82.004,81.925,0.25]
[1646693786168,0.25,82.003,81.925,0.25]
[1646693786366,0.25,82.003,81.926,6.1]
[1646693786566,0.25,82.003,81.934,100.0]
[1646693786766,0.25,82.003,81.935,6.349]
[1646693787168,122.35,82.003,81.94,18.3077]
[1646693787369,122.35,82.003,81.941,6.349]
[1646693787970,0.25,82.003,81.941,6.349]
[1646693788170,6.25,82.008,81.941,6.349]
[1646693788370,0.25,82.008,81.941,6.349]
[1646693788576,128.35,82.013,81.941,6.349]
[1646693788870,128.35,82.013,81.95,18.3055]
[1646693789271,14.43,82.01,81.95,18.3055]
[1646693789471,12.349,82.009,81.95,18.3055]
[1646693789873,6.25,82.009,81.95,18.3055]
[1646693790076,6.25,82.009,81.951,6.099]
[1646693790274,6.25,82.009,81.941,6.099]
[1646693791275,122.1,82.008,81.95,18.306]
[1646693791477,122.1,82.006,81.951,6.099]
[1646693791675,6.349,82.005,81.933,6.099]
[1646693791874,6.349,82.005,81.934,0.25]
[1646693792074,6.349,82.005,81.935,6.099]
[1646693793075,6.099,82.005,81.94,18.3064]
[1646693793378,6.099,82.008,81.941,0.25]
[1646693793576,6.0,82.007,81.941,0.25]
[1646693793776,6.099,82.006,81.941,0.25]
[1646693794176,6.099,82.006,81.95,18.304]
[1646693794475,6.0,82.007,81.951,6.349]
[1646693794676,6.0,82.008,81.942,6.099]
[1646693794877,6.0,82.023,81.952,0.25]
[1646693795077,6.0,82.023,81.953,6.098]
[1646693795280,6.098,82.022,81.954,0.25]
[1646693795477,6.0,82.021,81.954,0.25]
[1646693795678,6.098,82.02,81.954,0.25]
[1646693795877,6.0,82.019,81.954,0.25]
[1646693796077,122.1,82.017,81.96,18.3029]
[1646693796278,6.098,82.016,81.961,0.25]
[1646693796579,6.098,82.034,81.962,6.098]
[1646693796778,6.097,82.046,81.963,0.25]
[1646693796977,6.097,82.049,81.964,6.097]
[1646693797176,128.197,82.049,81.97,18.2991]
[1646693797378,128.197,82.049,81.971,6.346]
[1646693797577,122.1,82.047,81.971,106.096]
[1646693797780,12.346,82.046,81.972,0.25]
[1646693798076,12.346,82.046,81.973,6.096]
[1646693798277,12.346,82.046,81.974,0.25]
[1646693798478,12.346,82.046,81.975,6.096]
[1646693798679,122.1,82.045,81.975,6.096]
[1646693798879,122.1,82.043,81.975,6.096]
[1646693799080,6.346,82.042,81.98,18.2984]
[1646693799882,0.25,82.042,81.981,6.096]
[1646693800081,6.096,82.041,81.98,18.2984]
[1646693800286,7.73409508,82.052,81.99,18.2967]
[1646693800483,7.73309508,82.054,81.99,18.2967]
[1646693800781,6.095,82.054,81.99,18.2967]
[1646693800982,122.1,82.053,81.971,6.095]
[1646693801187,1.63809508,82.052,81.972,0.25]
[1646693801381,122.1,82.049,81.973,6.096]
[1646693801584,195.36,82.045,81.973,6.096]
[1646693801782,195.36,82.043,81.958,2.83613526]
[1646693801982,13.98409508,82.044,81.887,5.22229745]
[1646693801983,195.36,82.029,81.936,100.0]
[1646693802283,195.36,82.027,81.937,8.93313526]
[1646693802481,195.36,82.025,81.964,6.097]
[1646693802683,122.1,82.023,81.938,6.097]
[1646693802885,6.348,82.022,81.938,6.097]
[1646693803283,6.348,82.022,81.964,0.25]
[1646693803884,0.25,82.022,81.964,6.348]
[1646693804087,0.25,82.028,81.964,6.348]
[1646693804283,0.25,82.032,81.964,6.348]
[1646693804484,0.25,82.038,81.964,6.348]
[1646693804685,6.097,82.037,81.964,6.348]
[1646693804886,0.25,82.036,81.964,6.348]
[1646693805084,6.097,82.035,81.97,18.3014]
[1646693805287,0.25,82.034,81.971,6.097]
[1646693806190,0.25,82.039,81.971,6.097]
[1646693806387,6.097,82.038,81.971,6.097]
[1646693806588,73.26,82.031,81.971,6.097]
[1646693806787,6.25,82.037,81.937,2.83613526]
[1646693806788,122.1,82.024,81.964,6.097]
[1646693806986,122.1,82.024,81.937,2.83613526]
[1646693806987,128.198,82.024,81.952,45.2474]
[1646693807189,122.1,82.022,81.953,6.098]
[1646693807387,122.1,82.02,81.953,6.098]
[1646693807586,12.348,82.019,81.953,6.098]
[1646693807788,0.25,82.018,81.953,6.098]
[1646693807991,6.348,82.018,81.953,6.098]
[1646693808187,6.348,82.018,81.952,45.2474]
[1646693808188,6.0,82.017,81.952,45.2474]
[1646693808389,6.348,82.016,81.952,45.2474]
[1646693808590,6.0,82.015,81.953,0.25]
[1646693808788,128.448,82.014,81.953,0.25]
[1646693809088,6.0,82.013,81.953,0.25]
[1646693809289,6.348,82.012,81.953,0.25]
[1646693809689,95.9977,82.029,81.953,0.25]
[1646693810088,1.63809508,82.026,81.96,18.3033]
[1646693810288,123.73809508,82.024,81.952,44.9974]
[1646693810491,123.73809508,82.022,81.952,44.9974]
[1646693810689,12.098,82.021,81.953,0.25]
[1646693810890,122.1,82.02,81.953,0.25]
[1646693811088,122.1,82.018,81.953,0.25]
[1646693811288,0.25,82.017,81.96,18.3037]
[1646693811490,6.25,82.017,81.96,18.3037]
[1646693811687,6.0,82.016,81.96,18.3037]
[1646693811889,122.1,82.014,81.952,44.9974]
[1646693812188,6.25,82.013,81.952,44.9974]
[1646693812790,6.25,82.013,81.952,44.4974]
[1646693812994,0.25,82.013,81.952,44.4974]
[1646693813188,128.448,82.014,81.953,0.25]
[1646693813388,0.25,82.014,81.953,0.25]
[1646693813589,6.25,82.016,81.953,0.25]
[1646693814188,0.25,82.016,81.953,0.25]
[1646693814388,6.348,82.02,81.953,0.25]
[1646693814891,6.348,82.02,81.96,18.3038]
[1646693815498,0.25,82.02,81.96,18.3038]
[1646693815692,0.25,82.023,81.96,18.3038]
[1646693816293,1.63809508,82.024,81.96,18.3038]
[1646693816591,22.7377,82.029,81.953,0.25]
[1646693816592,1.63809508,82.027,81.97,18.3007]
[1646693817193,6.097,82.026,81.97,18.3007]
[1646693817795,0.25,82.025,81.97,18.3007]
[1646693817997,6.097,82.024,81.97,18.3007]
[1646693818196,0.25,82.023,81.97,18.3007]
[1646693819295,0.25,82.025,81.97,18.3007]
[1646693819495,6.097,82.024,81.97,18.3007]
[1646693819697,0.25,82.023,81.97,18.3007]
[1646693820196,0.25,82.025,81.971,0.25]
[1646693820398,1.63809508,82.033,81.98,18.2943]
[1646693820600,1.63809508,82.038,81.982,0.25679221]
[1646693820797,1.63809508,82.037,81.982,0.25]
[1646693821598,1.63809508,82.038,81.982,0.25]
[1646693821800,0.25,82.037,81.982,0.25]
[1646693821998,1.88809508,82.038,81.982,0.25]
[1646693822202,1.88809508,82.038,81.99,18.2955]
[1646693822399,0.25,82.038,81.99,18.2955]
[1646693824429,0.25,82.04,81.99,18.2955]
[1646693825529,6.25,82.04,81.99,18.2955]
[1646693826231,6.0,82.039,81.99,18.2955]
[1646693826430,0.25,82.038,81.99,18.2955]
[1646693826633,0.25,82.038,81.95,60.9993]
[1646693826832,1.63809508,82.037,81.957,0.25]
[1646693827032,6.25,82.036,81.957,20.88186815]
[1646693827232,7.88809508,82.036,81.957,20.88186815]
[1646693827433,1.63809508,82.035,81.958,20.63186815]
[1646693827732,128.35,82.034,81.97,18.3012]
[1646693827933,128.35,82.034,81.971,0.25]
[1646693828132,6.25,82.034,81.971,0.25]
[1646693828336,6.0,82.033,81.971,0.25]
[1646693828532,0.25,82.032,81.971,0.25]
[1646693828733,6.25,82.034,81.971,0.25]
[1646693828933,6.25,82.034,81.98,18.2991]
[1646693829433,6.0,82.033,81.98,18.2991]
[1646693829634,0.25,82.032,81.98,18.2991]
[1646693829832,0.25,82.034,81.98,18.2991]
[1646693830734,0.25,82.035,81.98,18.2991]
[1646693832141,0.25,82.035,81.99,18.2932]
[1646693832341,0.25,82.036,81.991,0.25]
[1646693832536,1.63809508,82.044,81.991,0.25]
[1646693832738,1.63809508,82.046,81.991,0.25]
[1646693833539,1.63809508,82.046,81.985,0.25]
[1646693833736,1.63809508,82.046,81.98,60.9771]
[1646693833936,1.63809508,82.047,81.981,0.25]
[1646693834137,1.63809508,82.044,81.981,0.25]
[1646693834337,1.63809508,82.043,81.981,0.25]
[1646693834637,0.25,82.042,81.981,0.25]
[1646693834937,0.25,82.043,81.99,18.2966]
[1646693835336,1.88809508,82.043,81.99,18.2966]
[1646693835538,1.63809508,82.042,81.99,18.2966]
[1646693835736,0.25,82.041,81.99,18.2966]
[1646693836139,1.63809508,82.043,81.99,18.2966]
[1646693836339,1.63809508,82.044,81.99,18.2966]
[1646693836738,1.63809508,82.042,81.99,18.2966]
[1646693837138,1.63809508,82.049,81.99,18.2966]
[1646693837338,1.63809508,82.049,81.99,26.1666]
[1646693837537,1.63809508,82.05,81.99,26.1666]
[1646693837737,1.63809508,82.051,81.991,24.922]
[1646693837940,1.63809508,82.053,82.0,18.2931]
[1646693838140,1.63809508,82.053,82.001,0.25]
[1646693838740,0.25,82.052,82.001,0.25]
[1646693838941,1.63809508,82.055,82.01,18.2924]
[1646693839140,6.096,82.069,82.011,0.25]
[1646693839141,1.63809508,82.058,82.011,0.25]
[1646693839740,1.63809508,82.059,82.011,0.25]
[1646693839941,1.63809508,82.068,82.012,0.20610486]
[1646693840139,1.63809508,82.069,82.013,6.094]
[1646693840339,1.63809508,82.07,82.014,0.25]
[1646693840539,1.63809508,82.07,82.015,6.094]
[1646693840739,1.63809508,82.07,82.016,0.25]
[1646693840939,1.63809508,82.075,82.017,6.094]
[1646693841142,6.25,82.074,82.02,18.2886]
[1646693841343,0.25,82.074,82.021,6.344]
[1646693841540,0.25,82.074,82.021,13.444]
[1646693841740,6.0,82.075,82.021,13.444]
[1646693842141,7.63809508,82.075,82.021,13.444]
[1646693842541,6.0,82.075,82.021,13.444]
[1646693842741,6.0,82.076,82.021,13.444]
[1646693842943,6.0,82.076,82.021,6.344]
[1646693843144,6.0,82.076,82.03,18.2876]
[1646693843343,6.0,82.079,82.031,0.25]
[1646693843542,6.0,82.08,82.031,0.25]
[1646693843743,0.25,82.079,82.031,0.25]
[1646693843945,1.63809508,82.077,82.03,18.2876]
[1646693844143,6.0,82.076,82.03,18.2876]
[1646693844344,6.0,82.08,82.03,18.2876]
[1646693844745,6.0,82.08,82.02,60.9507]
[1646693844746,6.0,82.085,82.031,6.093]
[1646693844944,6.0,82.086,82.04,18.2848]
[1646693845144,6.0,82.087,82.04,18.2848]
[1646693845745,0.25,82.086,82.04,18.2848]
[1646693845945,7.63809508,82.088,82.04,18.2848]
[1646693846146,0.25,82.087,82.04,18.2848]
[1646693846345,1.88809508,82.087,82.04,18.2848]
[1646693846548,6.0,82.086,82.05,18.2824]
[1646693847247,6.0,82.097,82.051,0.25]
[1646693847648,6.0,82.098,82.06,18.2809]
[1646693847849,6.0,82.101,82.061,0.25]
[1646693848251,1.63809508,82.12,82.062,6.091]
[1646693848449,1.63809508,82.12,82.063,0.25]
[1646693848649,1.63809508,82.134,82.07,18.2755]
[1646693848852,1.63809508,82.137,82.071,6.339]
[1646693849053,1.63809508,82.135,82.072,46.3044]
[1646693849252,6.089,82.134,82.073,6.339]
[1646693849452,7.72709508,82.146,82.073,6.339]
[1646693849655,6.0,82.145,82.09,18.271]
[1646693849852,6.0,82.145,82.091,0.25]
[1646693850052,1.63809508,82.156,82.092,6.088]
[1646693850252,6.0,82.155,82.093,0.47556646]
[1646693850473,1.63809508,82.162,82.095,0.24808455]
[1646693850651,1.63809508,82.163,82.096,6.088]
[1646693850852,1.63809508,82.166,82.097,6.25]
[1646693851051,51.34022646,82.189,82.098,6.40136224]
[1646693851052,1.63809508,82.176,82.098,6.40136224]
[1646693851351,1.63809508,82.176,82.101,0.31436224]
[1646693851352,6.087,82.175,82.101,0.31436224]
[1646693851554,6.087,82.175,82.102,6.087]
[1646693851752,6.087,82.175,82.103,0.25]
[1646693852052,0.25,82.174,82.101,6.087]
[1646693852252,18.2739,82.17,82.099,22.5762]
[1646693852452,1.63809508,82.164,82.095,23.7282]
[1646693852653,1.63809508,82.162,82.096,6.337]
[1646693852851,7.88809508,82.161,82.096,6.337]
[1646693853054,6.25,82.161,82.096,6.337]
[1646693853251,2.83613526,82.16,82.096,6.337]
[1646693853551,6.25,82.159,82.1,18.2717]
[1646693853752,6.25,82.159,82.101,6.087]
[1646693853952,2.83613526,82.158,82.101,6.087]
[1646693854156,6.25,82.157,82.101,6.087]
[1646693854354,1.63809508,82.164,82.11,18.2695]
[1646693854555,1.63809508,82.164,82.111,6.337]
[1646693854855,6.0,82.163,82.111,6.337]
[1646693855153,7.72509508,82.184,82.111,6.337]
[1646693855354,7.72509508,82.184,82.12,18.2658]
[1646693855553,6.087,82.184,82.121,0.25]
[1646693856556,6.086,82.187,82.13,18.2649]
[1646693856759,1.63809508,82.196,82.131,6.335]
[1646693856954,1.63809508,82.197,82.131,6.335]
[1646693857156,1.63809508,82.197,82.131,6.24]
[1646693857757,1.63809508,82.197,82.132,6.085]
[1646693857978,1.63809508,82.197,82.133,0.25]
[1646693858187,1.63809508,82.201,82.14,18.2611]
[1646693858379,6.0,82.2,82.141,6.333]
[1646693858581,6.0,82.202,82.141,6.333]
[1646693858779,6.0,82.203,82.141,6.333]
[1646693858981,7.63809508,82.203,82.141,6.333]
[1646693859179,0.25,82.202,82.141,6.333]
[1646693859981,0.25,82.202,82.15,18.2603]
[1646693860181,0.25,82.202,82.124,6.083]
[1646693860384,1.63809508,82.2,82.124,6.083]
[1646693860680,6.085,82.201,82.124,6.083]
[1646693860681,12.335,82.199,82.124,6.083]
[1646693860882,12.335,82.199,82.13,18.2647]
[1646693860883,6.0,82.199,82.13,18.2647]
[1646693861081,6.0,82.204,82.14,60.8492]
[1646693861284,1.63809508,82.219,82.141,134.433]
[1646693861682,1.63809508,82.244,82.143,122.1]
[1646693861884,1.63809508,82.244,82.147,122.1]
[1646693862081,1.63809508,82.251,82.18,18.2482]
[1646693862281,1.63809508,82.253,82.181,48.0295]
[1646693862482,1.63809508,82.255,82.181,48.0295]
[1646693862682,1.63809508,82.251,82.181,48.0295]
[1646693863082,6.081,82.25,82.181,48.0295]
[1646693863282,7.71909508,82.25,82.181,0.25]
[1646693863482,1.63809508,82.247,82.181,0.25]
[1646693863683,6.081,82.246,82.181,0.25]
[1646693864283,0.25,82.245,82.181,0.25]
[1646693864486,6.081,82.244,82.16,18.2549]
[1646693864682,122.1,82.234,82.153,6.081]
[1646693864884,1.63809508,82.228,82.154,0.25]
[1646693865084,6.333,82.227,82.154,0.25]
[1646693865283,6.0,82.226,82.154,0.25]
[1646693865482,6.333,82.225,82.154,0.25]
[1646693865683,6.0,82.224,82.154,0.25]
[1646693865887,6.333,82.223,82.154,0.25]
[1646693866085,6.333,82.223,82.153,6.081]
[1646693866484,6.0,82.222,82.153,6.081]
[1646693866684,122.1,82.218,82.153,6.081]
[1646693866884,6.333,82.221,82.153,6.081]
[1646693866885,73.26,82.209,82.153,6.081]
[1646693867086,73.26,82.199,82.153,6.081]
[1646693867284,122.1,82.184,82.129,100.0]
[1646693867486,6.25,82.183,82.129,100.0]
[1646693867684,9.08613526,82.183,82.101,22.7382]
[1646693867884,9.08613526,82.183,82.102,0.25]
[1646693868085,2.83613526,82.182,82.102,0.25]
[1646693868285,6.25,82.181,82.101,0.25]
[1646693868685,2.83613526,82.18,82.101,0.25]
[1646693868885,6.25,82.179,82.101,0.25]
[1646693869689,6.25,82.179,82.11,18.2681]
[1646693869886,6.25,82.179,82.111,0.25]
[1646693870489,1.63809508,82.176,82.111,0.25]
[1646693870687,12.336,82.175,82.111,0.25]
[1646693870888,1.63809508,82.174,82.111,0.25]
[1646693871089,6.25,82.173,82.111,0.25]
[1646693872089,7.88809508,82.173,82.111,0.25]
[1646693873292,1.63809508,82.166,82.111,0.25]
[1646693873495,6.25,82.165,82.111,0.25]
[1646693874094,0.25,82.165,82.111,0.25]
[1646693875195,1.63809508,82.159,82.111,0.25]
[1646693875400,6.25,82.158,82.111,0.25]
[1646693876095,0.25,82.158,82.111,0.25]
[1646693877097,1.63809508,82.152,82.111,0.25]
[1646693877400,7.88809508,82.151,82.111,0.25]
[1646693878398,1.63809508,82.15,82.111,0.25]
[1646693878599,6.25,82.149,82.111,0.25]
[1646693879197,1.63809508,82.148,82.111,0.25]
[1646693879398,6.25,82.147,82.111,0.25]
[1646693879599,6.25,82.147,82.101,0.25]
[1646693881303,0.25,82.147,82.101,0.25]
[1646693882105,7.63809508,82.148,82.11,18.2685]
[1646693882306,6.0,82.148,82.111,0.25]
[1646693882506,1.63809508,82.161,82.112,0.28557447]
[1646693882704,6.0,82.16,82.112,0.28557447]
[1646693883505,6.0,82.16,82.103,0.25]
[1646693883706,6.0,82.162,82.103,0.25]
[1646693883906,6.0,82.162,82.102,0.25]
[1646693884106,1.63809508,82.163,82.12,18.2603]
[1646693884315,1.63809508,82.166,82.121,0.25]